lending/lending_fUSD_20250114
["ID","MTS","AMOUNT","RATE_DAILY","PERIOD"]
[348952195,1736889746997,-2477.34,9.997e-05,2]
[348952196,1736889747025,-500.0,9.997e-05,2]
[348952197,1736889747049,-500.0,9.997e-05,2]
[348952198,1736889747073,-1242.62,9.997e-05,2]
[348952199,1736889747098,-500.0,9.997e-05,2]
[348952200,1736889747122,-500.0,9.997e-05,2]
[348952201,1736889747145,-500.0,9.997e-05,2]
[348952202,1736889747167,-500.0,9.997e-05,2]
[348952203,1736889747438,-789.7,9.997e-05,2]
[348952204,1736889747463,-500.0,9.997e-05,2]
[348952205,1736889747485,-500.0,9.997e-05,2]
[348952206,1736889747507,-500.0,9.997e-05,2]
[348952207,1736889747531,-500.0,9.997e-05,2]
[348952208,1736889747556,-500.0,9.997e-05,2]
[348952209,1736889747583,-500.0,9.997e-05,2]
[348952210,1736889747607,-500.0,9.997e-05,2]
[348952211,1736889747632,-1323.53,9.997e-05,2]
[348952212,1736889747655,-500.0,9.997e-05,2]
[348952213,1736889747677,-2247.49,9.997e-05,2]
[348952214,1736889747699,-500.0,9.997e-05,2]
[348952215,1736889747725,-500.0,9.997e-05,2]
[348952216,1736889747750,-500.0,9.997e-05,2]
[348952217,1736889747775,-226.11255344,9.997e-05,2]
[348952218,1736889747803,-500.0,9.997e-05,2]
[348952219,1736889747831,-2056.57,9.997e-05,2]
[348952220,1736889747855,-500.0,9.997e-05,2]
[348952221,1736889747882,-941.65,9.997e-05,2]
[348952222,1736889747906,-500.0,9.997e-05,2]
[348952223,1736889747930,-500.0,9.997e-05,2]
[348952224,1736889747955,-500.0,9.997e-05,2]
[348952225,1736889747978,-500.0,9.997e-05,2]
[348952226,1736889748003,-500.0,9.997e-05,2]
[348952227,1736889748026,-500.0,9.997e-05,2]
[348952228,1736889748052,-1126.11,9.997e-05,2]
[348952229,1736889748076,-782.23,9.997e-05,2]
[348952230,1736889748100,-671.93,9.997e-05,2]
[348952231,1736889748124,-500.0,9.997e-05,2]
[348952232,1736889748148,-597.04437862,9.997e-05,2]
[348952233,1736889748173,-500.0,9.997e-05,2]
[348952234,1736889748195,-519.21492947,9.997e-05,2]
[348952235,1736889748219,-500.0,9.997e-05,2]
[348952236,1736889748242,-546.81,9.997e-05,2]
[348952237,1736889748267,-1397.89,9.997e-05,2]
[348952238,1736889748291,-500.0,9.997e-05,2]
[348952239,1736889748316,-500.0,9.997e-05,2]
[348952240,1736889748341,-596.6,9.997e-05,2]
[348952241,1736889748365,-544.01,9.997e-05,2]
[348952242,1736889748389,-500.0,9.997e-05,2]
[348952243,1736889748414,-500.0,9.997e-05,2]
[348952244,1736889748440,-500.0,9.997e-05,2]
[348952245,1736889748465,-500.0,9.997e-05,2]
[348952246,1736889748488,-500.0,9.997e-05,2]
[348952247,1736889748526,-500.0,9.997e-05,2]
[348952248,1736889748553,-173.40642769,9.997e-05,2]
[348952249,1736889748579,-540.45,9.997e-05,2]
[348952250,1736889748605,-500.0,9.997e-05,2]
[348952251,1736889748630,-500.0,9.997e-05,2]
[348952252,1736889748657,-1711.64,9.997e-05,2]
[348952253,1736889748682,-500.0,9.997e-05,2]
[348952254,1736889748707,-500.0,9.997e-05,2]
[348952255,1736889748734,-1505.14,9.997e-05,2]
[348952256,1736889748760,-500.0,9.997e-05,2]
[348952257,1736889748791,-4461.23,9.997e-05,2]
[348952258,1736889748818,-500.0,9.997e-05,2]
[348952259,1736889748844,-500.0,9.997e-05,2]
[348952260,1736889748870,-500.0,9.997e-05,2]
[348952261,1736889748895,-500.0,9.997e-05,2]
[348952262,1736889748919,-500.0,9.997e-05,2]
[348952263,1736889748945,-500.0,9.997e-05,2]
[348952264,1736889748970,-500.0,9.997e-05,2]
[348952265,1736889748995,-500.0,9.997e-05,2]
[348952266,1736889749021,-500.0,9.997e-05,2]
[348952267,1736889749048,-500.0,9.997e-05,2]
[348952268,1736889749073,-500.0,9.997e-05,2]
[348952269,1736889749098,-500.0,9.997e-05,2]
[348952270,1736889749123,-500.0,9.997e-05,2]
[348952271,1736889749147,-500.0,9.997e-05,2]
[348952272,1736889749171,-500.0,9.997e-05,2]
[348952273,1736889749195,-500.0,9.997e-05,2]
[348952274,1736889749219,-500.0,9.997e-05,2]
[348952275,1736889749243,-500.0,9.997e-05,2]
[348952276,1736889749267,-500.0,9.997e-05,2]
[348952277,1736889749295,-500.0,9.997e-05,2]
[348952278,1736889749320,-500.0,9.997e-05,2]
[348952279,1736889749345,-1037.67,9.997e-05,2]
[348952280,1736889749370,-465.88717016,9.997e-05,2]
[348952281,1736889749395,-500.0,9.997e-05,2]
[348952282,1736889749420,-500.0,9.997e-05,2]
[348952283,1736889749445,-500.0,9.997e-05,2]
[348952284,1736889749469,-500.0,9.997e-05,2]
[348952285,1736889749494,-500.0,9.997e-05,2]
[348952286,1736889749518,-500.0,9.997e-05,2]
[348952287,1736889749548,-500.0,9.997e-05,2]
[348952288,1736889749572,-500.0,9.997e-05,2]
[348952289,1736889749596,-615.50975146,9.997e-05,2]
[348952290,1736889749621,-500.0,9.997e-05,2]
[348952291,1736889749645,-500.0,9.997e-05,2]
[348952292,1736889749670,-2045.99,9.997e-05,2]
[348952293,1736889749693,-324.58273256,9.997e-05,2]
[348952294,1736889749718,-509.66,9.997e-05,2]
[348952295,1736889749742,-650.59,9.997e-05,2]
[348952296,1736889749765,-500.0,9.997e-05,2]
[348952297,1736889749794,-500.0,9.997e-05,2]
[348952298,1736889749819,-659.76,9.997e-05,2]
[348952299,1736889749845,-728.84,9.997e-05,2]
[348952300,1736889749868,-500.0,9.997e-05,2]
[348952301,1736889749893,-500.0,9.997e-05,2]
[348952302,1736889749916,-647.0,9.997e-05,2]
[348952303,1736889749940,-910.58,9.997e-05,2]
[348952304,1736889749964,-500.0,9.997e-05,2]
[348952305,1736889749987,-500.0,9.997e-05,2]
[348952306,1736889750012,-500.0,9.997e-05,2]
[348952307,1736889750038,-1000.0,9.997e-05,2]
[348952308,1736889750061,-500.0,9.997e-05,2]
[348952309,1736889750086,-500.0,9.997e-05,2]
[348952310,1736889750110,-500.0,9.997e-05,2]
[348952311,1736889750133,-1470.49,9.997e-05,2]
[348952312,1736889750157,-500.0,9.997e-05,2]
[348952313,1736889750182,-1040.89,9.997e-05,2]
[348952314,1736889750206,-722.57,9.997e-05,2]
[348952315,1736889750230,-1157.44,9.997e-05,2]
[348952316,1736889750254,-1069.24,9.997e-05,2]
[348952317,1736889750279,-1413.84,9.999e-05,2]
[348952318,1736889750305,-1193.91,9.999e-05,2]
[348952319,1736889750329,-547.98652386,0.0001,2]
[348952320,1736889750917,833.06,9.997e-05,2]
[348952321,1736889750967,704.16,9.997e-05,2]
[348952322,1736889751188,500.0,9.997e-05,2]
[348952323,1736889751344,996.93,9.997e-05,2]
[348952324,1736889751773,500.0,9.997e-05,2]
[348952325,1736889751854,500.0,9.997e-05,2]
[348952326,1736889752490,158.81014222,9.997e-05,2]
[348952378,1736890231939,-250.0,9.395e-05,2]
[348952379,1736890231953,-150.0,9.499e-05,2]
[348952380,1736890231962,-18437.98783675,9.5e-05,2]
[348952381,1736890232219,-82942.92771594,9.5e-05,2]
[348952382,1736890232228,-577.88,9.554e-05,2]
[348952383,1736890232237,-1000.0,9.587e-05,2]
[348952384,1736890232246,-603.45,9.611e-05,2]
[348952385,1736890232256,-716.62,9.649e-05,2]
[348952386,1736890232266,-174.22,9.905e-05,2]
[348952387,1736890232276,-500.0,9.997e-05,2]
[348952388,1736890232286,-500.0,9.997e-05,2]
[348952389,1736890232295,-500.0,9.997e-05,2]
[348952390,1736890232305,-645.08,9.997e-05,2]
[348952391,1736890232315,-500.0,9.997e-05,2]
[348952392,1736890232325,-500.0,9.997e-05,2]
[348952393,1736890232336,-500.0,9.997e-05,2]
[348952394,1736890232346,-955.39,9.997e-05,2]
[348952395,1736890232356,-500.0,9.997e-05,2]
[348952396,1736890232366,-500.0,9.997e-05,2]
[348952397,1736890232375,-2797.35,9.997e-05,2]
[348952398,1736890232385,-500.0,9.997e-05,2]
[348952399,1736890232394,-500.0,9.997e-05,2]
[348952400,1736890232405,-500.0,9.997e-05,2]
[348952401,1736890232414,-500.0,9.997e-05,2]
[348952402,1736890232424,-500.0,9.997e-05,2]
[348952403,1736890232434,-500.0,9.997e-05,2]
[348952404,1736890232443,-500.0,9.997e-05,2]
[348952405,1736890232452,-501.82,9.997e-05,2]
[348952406,1736890232462,-500.0,9.997e-05,2]
[348952407,1736890232470,-500.0,9.997e-05,2]
[348952408,1736890232480,-513.55,9.997e-05,2]
[348952409,1736890232490,-2140.16,9.997e-05,2]
[348952410,1736890232499,-500.0,9.997e-05,2]
[348952412,1736890232509,-500.0,9.997e-05,2]
[348952414,1736890232517,-500.0,9.997e-05,2]
[348952416,1736890232531,-4416.6,9.997e-05,2]
[348952418,1736890232541,-1021.47,9.997e-05,2]
[348952419,1736890232551,-500.0,9.997e-05,2]
[348952421,1736890232561,-500.0,9.997e-05,2]
[348952423,1736890232570,-500.0,9.997e-05,2]
[348952425,1736890232579,-577.47,9.997e-05,2]
[348952427,1736890232589,-500.0,9.997e-05,2]
[348952429,1736890232598,-500.0,9.997e-05,2]
[348952430,1736890232607,-1326.44,9.997e-05,2]
[348952432,1736890232616,-500.0,9.997e-05,2]
[348952434,1736890232624,-773.41,9.997e-05,2]
[348952436,1736890232634,-500.0,9.997e-05,2]
[348952438,1736890232643,-500.0,9.997e-05,2]
[348952439,1736890232652,-500.0,9.997e-05,2]
[348952441,1736890232661,-1466.79,9.997e-05,2]
[348952443,1736890232670,-500.0,9.997e-05,2]
[348952445,1736890232679,-500.0,9.997e-05,2]
[348952447,1736890232688,-860.38,9.997e-05,2]
[348952449,1736890232698,-659.39,9.997e-05,2]
[348952451,1736890232708,-860.38,9.997e-05,2]
[348952452,1736890232717,-500.0,9.997e-05,2]
[348952454,1736890232727,-500.0,9.997e-05,2]
[348952456,1736890232738,-500.0,9.997e-05,2]
[348952458,1736890232747,-500.0,9.997e-05,2]
[348952459,1736890232756,-500.0,9.997e-05,2]
[348952461,1736890232765,-500.0,9.997e-05,2]
[348952463,1736890232775,-500.0,9.997e-05,2]
[348952465,1736890232784,-500.0,9.997e-05,2]
[348952467,1736890232793,-166.40150781,9.997e-05,2]
[348952891,1736890237855,-333.59849219,9.997e-05,2]
[348952892,1736890237866,-638.02,9.997e-05,2]
[348952893,1736890237876,-500.0,9.997e-05,2]
[348952894,1736890237886,-500.0,9.997e-05,2]
[348952895,1736890237895,-500.0,9.997e-05,2]
[348952896,1736890237906,-2548.51,9.997e-05,2]
[348952897,1736890237915,-500.0,9.997e-05,2]
[348952898,1736890237925,-500.0,9.997e-05,2]
[348952899,1736890237935,-857.65,9.997e-05,2]
[348952900,1736890237945,-609.31,9.997e-05,2]
[348952901,1736890237955,-500.0,9.997e-05,2]
[348952902,1736890237965,-672.51,9.997e-05,2]
[348952903,1736890237975,-500.0,9.997e-05,2]
[348952904,1736890237984,-500.0,9.997e-05,2]
[348952905,1736890237994,-500.0,9.997e-05,2]
[348952906,1736890238004,-500.0,9.997e-05,2]
[348952907,1736890238015,-500.0,9.997e-05,2]
[348952908,1736890238025,-500.0,9.997e-05,2]
[348952909,1736890238034,-1832.64,9.997e-05,2]
[348952910,1736890238044,-494.5936943,9.997e-05,2]
[348952911,1736890238053,-500.0,9.997e-05,2]
[348952912,1736890238063,-500.0,9.997e-05,2]
[348952913,1736890238072,-656.8,9.997e-05,2]
[348952914,1736890238081,-500.0,9.997e-05,2]
[348952915,1736890238091,-604.39,9.997e-05,2]
[348952916,1736890238100,-500.0,9.997e-05,2]
[348952917,1736890238111,-500.0,9.997e-05,2]
[348952918,1736890238120,-500.0,9.997e-05,2]
[348952919,1736890238130,-182.17641243,9.997e-05,2]
[348952920,1736890238139,-500.0,9.997e-05,2]
[348952921,1736890238148,-500.0,9.997e-05,2]
[348952922,1736890238158,-500.0,9.997e-05,2]
[348952923,1736890238167,-1287.62,9.997e-05,2]
[348952924,1736890238177,-635.29,9.997e-05,2]
[348952925,1736890238188,-1885.69,9.997e-05,2]
[348952926,1736890238198,-574.15,9.997e-05,2]
[348952927,1736890238207,-500.0,9.997e-05,2]
[348952928,1736890238217,-500.0,9.997e-05,2]
[348952929,1736890238226,-534.21,9.997e-05,2]
[348952930,1736890238236,-739.32,9.997e-05,2]
[348952931,1736890238245,-800.24,9.997e-05,2]
[348952932,1736890238254,-855.03,9.997e-05,2]
[348952933,1736890238264,-500.0,9.997e-05,2]
[348952934,1736890238273,-500.0,9.997e-05,2]
[348952935,1736890238282,-500.0,9.997e-05,2]
[348952936,1736890238292,-2253.21,9.997e-05,2]
[348952938,1736890238301,-638.97,9.997e-05,2]
[348952939,1736890238310,-555.97,9.997e-05,2]
[348952940,1736890238320,-500.0,9.997e-05,2]
[348952941,1736890238329,-762.68,9.997e-05,2]
[348952942,1736890238339,-500.0,9.997e-05,2]
[348952943,1736890238348,-781.78,9.997e-05,2]
[348952944,1736890238357,-500.0,9.997e-05,2]
[348952945,1736890238367,-254.60380089,9.997e-05,2]
[348952946,1736890238376,-1092.56,9.997e-05,2]
[348952947,1736890238385,-500.0,9.997e-05,2]
[348952948,1736890238395,-500.0,9.997e-05,2]
[348952949,1736890238405,-500.0,9.997e-05,2]
[348952950,1736890238414,-500.0,9.997e-05,2]
[348952951,1736890238425,-500.0,9.997e-05,2]
[348952952,1736890238435,-500.0,9.997e-05,2]
[348952953,1736890238444,-500.0,9.997e-05,2]
[348952954,1736890238454,-500.0,9.997e-05,2]
[348952955,1736890238463,-500.0,9.997e-05,2]
[348952956,1736890238472,-1371.44,9.997e-05,2]
[348952957,1736890238481,-500.0,9.997e-05,2]
[348952958,1736890238491,-500.0,9.997e-05,2]
[348952959,1736890238500,-500.0,9.997e-05,2]
[348952960,1736890238509,-500.0,9.997e-05,2]
[348952961,1736890238518,-500.0,9.997e-05,2]
[348952962,1736890238528,-500.0,9.997e-05,2]
[348952963,1736890238537,-500.0,9.997e-05,2]
[348952964,1736890238546,-578.25,9.997e-05,2]
[348952965,1736890238556,-500.0,9.997e-05,2]
[348952966,1736890238565,-500.0,9.997e-05,2]
[348952967,1736890238575,-3085.09,9.997e-05,2]
[348952968,1736890238584,-500.0,9.997e-05,2]
[348952969,1736890238595,-500.0,9.997e-05,2]
[348952970,1736890238604,-723.11,9.997e-05,2]
[348952971,1736890238614,-500.0,9.997e-05,2]
[348952972,1736890238623,-500.0,9.997e-05,2]
[348952973,1736890238632,-500.0,9.997e-05,2]
[348952974,1736890238641,-500.0,9.997e-05,2]
[348952975,1736890238650,-150.28683784,9.997e-05,2]
[348952976,1736890238659,-500.0,9.997e-05,2]
[348952977,1736890238669,-500.0,9.997e-05,2]
[348952978,1736890238678,-1395.98,9.997e-05,2]
[348952979,1736890238688,-500.0,9.997e-05,2]
[348952980,1736890238697,-522.63,9.997e-05,2]
[348952981,1736890238707,-500.0,9.997e-05,2]
[348952982,1736890238717,-500.0,9.997e-05,2]
[348952983,1736890238726,-500.0,9.997e-05,2]
[348952984,1736890238735,-1000.0,9.997e-05,2]
[348952985,1736890238745,-500.0,9.997e-05,2]
[348952986,1736890238754,-500.0,9.997e-05,2]
[348952987,1736890238764,-2130.66,9.997e-05,2]
[348952988,1736890238773,-342.03,9.997e-05,2]
[348952989,1736890238782,-500.0,9.997e-05,2]
[348952990,1736890238791,-282.00985379,9.997e-05,2]
[348952991,1736890238802,-1186.83,9.997e-05,2]
[348952992,1736890238810,-500.0,9.997e-05,2]
[348952993,1736890238820,-500.0,9.997e-05,2]
[348952994,1736890238829,-500.0,9.997e-05,2]
[348952995,1736890238839,-500.0,9.997e-05,2]
[348952996,1736890238848,-784.24,9.997e-05,2]
[348952997,1736890238858,-552.75,9.997e-05,2]
[348952998,1736890238867,-500.0,9.997e-05,2]
[348952999,1736890238877,-500.0,9.997e-05,2]
[348953000,1736890238886,-1916.7,9.997e-05,2]
[348953001,1736890238896,-2430.31,9.997e-05,2]
[348953002,1736890238905,-500.0,9.997e-05,2]
[348953003,1736890238915,-727.44,9.997e-05,2]
[348953004,1736890238924,-677.42,9.997e-05,2]
[348953005,1736890238933,-500.0,9.997e-05,2]
[348953006,1736890238944,-500.0,9.997e-05,2]
[348953007,1736890238956,-500.0,0.0001,2]
[348953008,1736890238966,-200.0,0.0001,2]
[348953009,1736890238975,-1050.86960543,0.0001,2]
[348953010,1736890238984,-150.28683774,0.00010002,2]
[348953011,1736890238994,-1009.41,0.00010082,2]
[348953012,1736890239004,-200.0,0.000101,2]
[348953013,1736890239014,-150.28683774,0.00010108,2]
[348953014,1736890239025,-179.85,0.00010137,2]
[348953015,1736890239035,-852.061,0.00010171,2]
[348953016,1736890239045,-5000.0,0.00010171,2]
[348953017,1736890239055,-1000.0,0.00010171,2]
[348953018,1736890239064,-150.28683774,0.00010213,2]
[348953019,1736890239073,-615.03,0.0001027,2]
[348953020,1736890239083,-616.77,0.0001027,2]
[348953021,1736890239093,-1568.55,0.0001027,2]
[348953022,1736890239102,-1091.72,0.0001027,2]
[348953023,1736890239113,-1661.4,0.0001027,2]
[348953024,1736890239122,-696.89,0.0001027,2]
[348953025,1736890239133,-1183.62,0.0001027,2]
[348953026,1736890239142,-746.54,0.0001027,2]
[348953027,1736890239153,-1899.41,0.0001027,2]
[348953028,1736890239163,-1774.01,0.0001027,2]
[348953029,1736890239171,-613.17,0.0001027,2]
[348953030,1736890239181,-1022.59,0.0001027,2]
[348953031,1736890239191,-539.3,0.0001027,2]
[348953032,1736890239200,-753.75,0.0001027,2]
[348953033,1736890239210,-500.0,0.0001027,2]
[348953034,1736890239221,-500.0,0.0001027,2]
[348953035,1736890239230,-1219.8,0.0001027,2]
[348953036,1736890239239,-801.27,0.0001027,2]
[348953037,1736890239249,-1099.78,0.0001027,2]
[348953038,1736890239259,-606.97,0.0001027,2]
[348953039,1736890239268,-310.98337892,0.00010271,2]
[348953040,1736890239278,-618.49935305,0.00010271,2]
[348953041,1736890239287,-500.0,0.00010271,2]
[348953042,1736890239296,-500.0,0.00010271,2]
[348953043,1736890239306,-500.0,0.00010271,2]
[348953044,1736890239316,-500.0,0.00010271,2]
[348953045,1736890239325,-500.0,0.00010271,2]
[348953046,1736890239335,-500.0,0.00010271,2]
[348953047,1736890239345,-545.53,0.00010271,2]
[348953048,1736890239355,-500.0,0.00010271,2]
[348953049,1736890239365,-500.0,0.00010271,2]
[348953050,1736890239374,-500.0,0.00010271,2]
[348953051,1736890239384,-500.0,0.00010271,2]
[348953052,1736890239394,-500.0,0.00010271,2]
[348953053,1736890239403,-601.65,0.00010271,2]
[348953054,1736890239414,-500.0,0.00010271,2]
[348953055,1736890239423,-500.0,0.00010271,2]
[348953056,1736890239433,-500.0,0.00010271,2]
[348953057,1736890239443,-500.0,0.00010271,2]
[348953058,1736890239452,-500.0,0.00010271,2]
[348953059,1736890239461,-573.92,0.00010271,2]
[348953060,1736890239471,-587.37,0.00010271,2]
[348953061,1736890239481,-500.0,0.00010271,2]
[348953062,1736890239491,-500.0,0.00010271,2]
[348953063,1736890239501,-500.0,0.00010271,2]
[348953064,1736890239512,-500.0,0.00010271,2]
[348953065,1736890239521,-500.0,0.00010271,2]
[348953066,1736890239531,-500.0,0.00010271,2]
[348953067,1736890239540,-500.0,0.00010271,2]
[348953068,1736890239549,-500.0,0.00010271,2]
[348953069,1736890239561,-500.0,0.00010271,2]
[348953070,1736890239573,-500.0,0.00010271,2]
[348953071,1736890239582,-789.7,0.00010271,2]
[348953072,1736890239591,-500.0,0.00010271,2]
[348953073,1736890239600,-500.0,0.00010271,2]
[348953074,1736890239610,-613.58590833,0.00010271,2]
[348953075,1736890239620,-500.0,0.00010271,2]
[348953076,1736890239630,-500.0,0.00010271,2]
[348953077,1736890239640,-500.0,0.00010271,2]
[348953078,1736890239649,-782.23,0.00010271,2]
[348953079,1736890239658,-500.0,0.00010271,2]
[348953080,1736890239668,-546.81,0.00010271,2]
[348953081,1736890239677,-1397.89,0.00010271,2]
[348953082,1736890239687,-500.0,0.00010271,2]
[348953083,1736890239696,-500.0,0.00010271,2]
[348953084,1736890239707,-500.0,0.00010271,2]
[348953085,1736890239717,-540.45,0.00010271,2]
[348953086,1736890239727,-500.0,0.00010271,2]
[348953088,1736890239737,-500.0,0.00010271,2]
[348953090,1736890239746,-500.0,0.00010271,2]
[348953091,1736890239756,-500.0,0.00010271,2]
[348953092,1736890239765,-500.0,0.00010271,2]
[348953094,1736890239775,-500.0,0.00010271,2]
[348953095,1736890239784,-500.0,0.00010271,2]
[348953096,1736890239794,-500.0,0.00010271,2]
[348953097,1736890239803,-500.0,0.00010271,2]
[348953098,1736890239813,-500.0,0.00010271,2]
[348953099,1736890239823,-500.0,0.00010271,2]
[348953100,1736890239833,-189.09083855,0.00010271,2]
[348953101,1736890239842,-500.0,0.00010271,2]
[348953102,1736890239852,-500.0,0.00010271,2]
[348953103,1736890239862,-650.59,0.00010271,2]
[348953104,1736890239878,-500.0,0.00010271,2]
[348953105,1736890239889,-500.0,0.00010271,2]
[348953106,1736890239898,-728.84,0.00010271,2]
[348953107,1736890239908,-500.0,0.00010271,2]
[348953108,1736890239918,-500.0,0.00010271,2]
[348953109,1736890239927,-647.0,0.00010271,2]
[348953110,1736890239936,-500.0,0.00010271,2]
[348953111,1736890239949,-500.0,0.00010271,2]
[348953112,1736890239959,-500.0,0.00010271,2]
[348953113,1736890239969,-500.0,0.00010271,2]
[348953114,1736890239978,-500.0,0.00010271,2]
[348953115,1736890239988,-500.0,0.00010271,2]
[348953116,1736890239998,-722.57,0.00010271,2]
[348953117,1736890240007,-1069.24,0.00010271,2]
[348953118,1736890240016,-704.16,0.00010271,2]
[348953119,1736890240026,-500.0,0.00010271,2]
[348953120,1736890240035,-500.0,0.00010271,2]
[348953121,1736890240045,-505.94,0.00010271,2]
[348953122,1736890240054,-500.0,0.00010271,2]
[348953123,1736890240063,-500.0,0.00010271,2]
[348953124,1736890240072,-645.08,0.00010271,2]
[348953125,1736890240081,-196.01901628,0.00010271,2]
[348953126,1736890240091,-955.39,0.00010271,2]
[348953127,1736890240101,-500.0,0.00010271,2]
[348953128,1736890240110,-500.0,0.00010271,2]
[348953129,1736890240121,-2797.35,0.00010271,2]
[348953130,1736890240130,-500.0,0.00010271,2]
[348953131,1736890240140,-500.0,0.00010271,2]
[348953132,1736890240149,-500.0,0.00010271,2]
[348953133,1736890240160,-500.0,0.00010271,2]
[348953134,1736890240171,-500.0,0.00010271,2]
[348953135,1736890240181,-501.82,0.00010271,2]
[348953136,1736890240191,-500.0,0.00010271,2]
[348953137,1736890240200,-500.0,0.00010271,2]
[348953138,1736890240210,-513.55,0.00010271,2]
[348953139,1736890240219,-2140.16,0.00010271,2]
[348953140,1736890240230,-500.0,0.00010271,2]
[348953141,1736890240242,-500.0,0.00010271,2]
[348953142,1736890240252,-500.0,0.00010271,2]
[348953143,1736890240261,-4416.6,0.00010271,2]
[348953144,1736890240271,-500.0,0.00010271,2]
[348953145,1736890240280,-1021.47,0.00010271,2]
[348953146,1736890240289,-277.28468808,0.00010271,2]
[348953147,1736890240299,-500.0,0.00010271,2]
[348953148,1736890240308,-577.47,0.00010271,2]
[348953149,1736890240317,-1326.44,0.00010271,2]
[348953150,1736890240327,-500.0,0.00010271,2]
[348953151,1736890240337,-773.41,0.00010271,2]
[348953152,1736890240347,-500.0,0.00010271,2]
[348953153,1736890240356,-500.0,0.00010271,2]
[348953155,1736890240366,-500.0,0.00010271,2]
[348953157,1736890240375,-1466.79,0.00010271,2]
[348953159,1736890240384,-500.0,0.00010271,2]
[348953161,1736890240394,-500.0,0.00010271,2]
[348953163,1736890240403,-659.39,0.00010271,2]
[348953165,1736890240412,-860.38,0.00010271,2]
[348953167,1736890240422,-860.38,0.00010271,2]
[348953169,1736890240432,-369.4494947,0.00010271,2]
[348953171,1736890240443,-500.0,0.00010271,2]
[348953173,1736890240453,-500.0,0.00010271,2]
[348953175,1736890240462,-500.0,0.00010271,2]
[348953177,1736890240472,-500.0,0.00010271,2]
[348953179,1736890240481,-500.0,0.00010271,2]
[348953181,1736890240490,-500.0,0.00010271,2]
[348953183,1736890240500,-638.02,0.00010271,2]
[348953185,1736890240510,-500.0,0.00010271,2]
[348953187,1736890240520,-2548.51,0.00010271,2]
[348953189,1736890240529,-500.0,0.00010271,2]
[348953191,1736890240539,-609.31,0.00010271,2]
[348953193,1736890240548,-857.65,0.00010271,2]
[348953195,1736890240557,-672.51,0.00010271,2]
[348953198,1736890240567,-500.0,0.00010271,2]
[348953200,1736890240577,-500.0,0.00010271,2]
[348953202,1736890240586,-500.0,0.00010271,2]
[348953203,1736890240595,-500.0,0.00010271,2]
[348953205,1736890240605,-500.0,0.00010271,2]
[348953207,1736890240614,-1832.64,0.00010271,2]
[348953208,1736890240623,-500.0,0.00010271,2]
[348953209,1736890240633,-500.0,0.00010271,2]
[348953211,1736890240642,-656.8,0.00010271,2]
[348953213,1736890240652,-500.0,0.00010271,2]
[348953215,1736890240661,-604.39,0.00010271,2]
[348953217,1736890240673,-500.0,0.00010271,2]
[348953219,1736890240683,-500.0,0.00010271,2]
[348953221,1736890240694,-500.0,0.00010271,2]
[348953223,1736890240704,-500.0,0.00010271,2]
[348953225,1736890240713,-500.0,0.00010271,2]
[348953227,1736890240723,-500.0,0.00010271,2]
[348953229,1736890240733,-1287.62,0.00010271,2]
[348953231,1736890240742,-635.29,0.00010271,2]
[348953233,1736890240752,-1885.69,0.00010271,2]
[348953235,1736890240761,-574.15,0.00010271,2]
[348953237,1736890240771,-500.0,0.00010271,2]
[348953239,1736890240780,-500.0,0.00010271,2]
[348953241,1736890240789,-534.21,0.00010271,2]